Cogmind - Beta 16 @@@ ROGUE MODE // 2025.12.06 @ 00:31:16 Player: Azktor Result: Destroyed by 9N-S5W(R) with Subdweller Machine Gun Performance ------------- Evolutions (0) 0 Regions Visited (2) 400 Robots Destroyed (22) 110 Value Destroyed (805) 805 Prototype IDs (0) 0 Alien Tech Used (0) 0 Bonus (-24) -24 TOTAL SCORE: 1291 Bonus ------- Friendly Fire -24 Cogmind --------- Core Integrity 0/250 Matter 204/300 Energy 63/100 System Corruption 0% Temperature Cool (0) Movement Treading (240) Ox1 Location -10/Subcaves Parts ------- > --- POWER (1) -------- (None) > --- PROPULSION (2) --- Light Treads > --- UTILITY (2) ------ Large Storage Unit Makeshift Light Armor Plating > --- WEAPON (2) ------- Subdweller Beam Cannon Slug Cannon > --- INVENTORY (15) --- Compact Wheel Improved Heat Sink Seismic Detector Scrap Shield Riot Gun Subdweller Laser Beamcaster Subdweller Beam Cannon Subdweller Beam Cannon Battle Rifle Subdweller Machine Gun Battle Cannon Subdweller Shrapnel Launcher Mining Laser Peak State ------------ > --- POWER ------------ Subdweller Power Source > --- PROPULSION ------- Light Treads Light Treads > --- UTILITY ---------- Large Storage Unit Makeshift Light Armor Plating > --- WEAPON ----------- Subdweller Machine Gun Slug Cannon > --- INVENTORY -------- Compact Wheel Improved Heat Sink Seismic Detector Scrap Shield Riot Gun Subdweller Laser Beamcaster Subdweller Beam Cannon Subdweller Beam Cannon Subdweller Machine Gun Battle Cannon Subdweller Shrapnel Launcher Mining Laser [Rating: 18] Favorites ----------- Power Subdweller Power Source Engine Subdweller Power Source Propulsion Light Treads Treads Light Treads Leg Aluminum Leg Utility Large Storage Unit Device Seismic Detector Storage Large Storage Unit Protection Makeshift Light Armor Plating Weapon Subdweller Beam Cannon Energy Cannon Subdweller Beam Cannon Ballistic Gun Assault Rifle Ballistic Cannon Slug Cannon Launcher Subdweller Shrapnel Launcher Special Weapon Mining Laser Build | -11 -10 -10 ------- Run | Yrd Mat Sub Slots Evolved . | . . . Power . | . . . Propulsion . | . . . Utility . | . . . Weapon . | . . . Parts Attached 28 | 7 6 15 Power 4 | 1 . 3 Engine 4 | 1 . 3 Core . | . . . Reactor . | . . . Propulsion 5 | 2 2 1 Treads 3 | . 2 1 Leg 2 | 2 . . Wheel . | . . . Hover . | . . . Flight . | . . . Utility 6 | 2 2 2 Device 2 | 1 . 1 Storage 3 | 1 2 . Processor . | . . . Hackware . | . . . Protection 1 | . . 1 Artifact . | . . . Weapon 13 | 2 2 9 Energy Gun . | . . . Energy Cannon 3 | . . 3 Ballistic Gun 6 | 2 1 3 Ballistic Cannon 1 | . . 1 Launcher 2 | . 1 1 Special Weapon 1 | . . 1 Impact Weapon . | . . . Slashing Weapon . | . . . Piercing Weapon . | . . . Special Melee Weapon . | . . . Unidentified Prototypes . | . . . Parts Lost 5 | . 1 4 Power 1 | . . 1 Propulsion 2 | . . 2 Utility 1 | . . 1 Weapon 1 | . 1 . Highest Loss Streak 1 | . 1 1 To Critical Strikes . | . . . Average Backups 11 | 2 5 13 Power . | . 1 . Propulsion 1 | . 1 1 Utility 2 | . 1 3 Weapon 7 | . 1 8 Tool/Special . | . . . Unused Backups 11 | . . 11 Power 1 | . . 1 Propulsion 1 | . . 1 Utility 3 | . . 3 Weapon 6 | . . 6 Tool/Special . | . . . Average Slot Usage (%) 91 | . 99 90 Engine 13 | . 14 13 Treads 19 | . 16 19 Leg 1 | . 11 . Device 4 | . 14 2 Storage 14 | . 14 14 Protection 9 | . . 11 Energy Cannon 8 | . . 10 Ballistic Gun 11 | . 27 8 Ballistic Cannon 1 | . . 1 Special Weapon 7 | . . 8 Peak Build Rating 18 | 7 8 18 Average Rating 12 | 5 6 13 On Entrance 4 | . 7 7 Avg Prop Armor Cover (%) . | . . . Naked Turns . | . . . Heaviest Build 44 | 13 28 44 Greatest Support 40 | 20 40 40 Greatest Overweight (x) 4 | 1 4 2 Average Overweight (x) . | . . . Largest Inventory Capacity 25 | 8 25 15 Average Capacity 14 | 7 11 15 Most Carried 15 | 4 8 15 Average Carried 12 | 3 5 14 Final Capacity 15 | 8 15 15 Final Carried 15 | 4 7 15 Class Distribution -------------------- 91% | Mutant 8% | Scavenger-Mutant Dominant Class ---------------- Mutant | -10/Materials Mutant | -10/Subcaves Resources | -11 -10 -10 ----------- Run | Yrd Mat Sub Matter Collected 874 | 298 147 429 Remotely . | . . . Salvage Created 839 | 108 191 540 Parts 47 | 7 9 31 Haulers Intercepted . | . . . Recyclers Shooed 1 | . 1 . Parts Field Recycled . | . . . Retrieved Matter . | . . . Parts Self-Destructed 7 | . . 7 Prevented . | . . . Parts Restored . | . . . Kills | -11 -10 -10 ------- Run | Yrd Mat Sub Combat Hostiles Destroyed 19 | . 6 13 Guns 3 | . 3 . Cannons 9 | . . 9 AOE 5 | . 3 2 Classes Destroyed 5 | 2 1 2 Tunneler 2 | 2 . . Recycler 1 | 1 . . Grunt 6 | . 6 . Sentry 1 | . . 1 Subdweller 12 | . . 12 Best Kill Streak 6 | 2 4 6 Combat Bots Only 6 | . 4 6 Max Kills in Single Turn 2 | 1 2 1 Gunslinging . | . . . Exploded 2 | . 2 1 Melee . | . . . Uniques/NPCs Destroyed . | . . . Combat | -11 -10 -10 -------- Run | Yrd Mat Sub Hostile Shots Fired 87 | . 23 64 Missed 27 | . 10 17 Hits 60 | . 13 47 Projectile 60 | . 13 47 AOE 2 | . . 2 Critical Strikes 2 | . . 2 Damage Taken 1436 | . 326 1110 Core 259 | . 32 227 Absorbed by Shields . | . . . Core Remaining (%) 100 | 100 . . Volleys Fired 99 | 10 21 68 Largest 2 | 2 2 2 Hottest 120 | 40 40 120 Shots Fired 169 | 20 40 109 Gun 103 | 20 38 45 Cannon 37 | . . 37 Launcher 5 | . 2 3 Special 24 | . . 24 Kinetic 117 | 20 38 59 Thermal 50 | . . 50 Explosive 2 | . 2 . Electromagnetic . | . . . Robot Hit Streak 11 | 3 10 11 Robot Miss Streak 4 | 4 3 2 Penetration Max . | . . . Secondary Targets 1 | . 1 . Max Gunslinging Chain 1 | . 1 . Shots Hit Robots 92 | 8 26 58 Core Hits 32 | 4 13 15 Critical Kills 2 | . . 2 Critical Parts Destroyed 1 | 1 . . Critical Strikes 3 | 1 . 2 Meltdown 2 | . . 2 Destroy 1 | 1 . . Melee Attacks . | . . . Impact . | . . . Slashing . | . . . Piercing . | . . . Sneak Attacks . | . . . Combat Hostiles . | . . . Follow-up Attacks . | . . . Damage Inflicted 2077 | 100 601 1376 Guns 809 | 100 312 397 Cannons 735 | . . 735 Explosions 505 | . 285 220 Melee . | . . . Ramming 4 | . 4 . Kinetic 1165 | 100 312 753 Thermal 623 | . . 623 Explosive 285 | . 285 . Electromagnetic . | . . . Impact . | . . . Slashing . | . . . Piercing . | . . . Highest Corruption . | . . . Average Corruption . | . . . Corruption Purged . | . . . Corruption Blocked . | . . . Overload Shots . | . . . Overflow Damage 15 | . 2 13 Projectiles . | . . . Explosions 15 | . 2 13 Melee . | . . . Knockbacks 1 | . . 1 Impact . | . . . Kinetic 1 | . . 1 Secondary . | . . . Self-Inflicted Damage 202 | . 172 30 Shots 4 | . 3 1 Rammed . | . . . Targets Rammed 1 | . 1 . Kicked 1 | . 1 . Crushed . | . . . Highest Temperature 235 | . 8 235 Average Temperature 43 | . 2 57 Received Heat Transfer 524 | . 87 437 Siege Activations . | . . . Martial Activations . | . . . Shielding Activations . | . . . Robots Disrupted . | . . . Combat Hostiles . | . . . Robots Corrupted . | . . . Combat Hostiles . | . . . Parts Fried . | . . . Impact Corruptions . | . . . Robots Melted 2 | . . 2 Combat Hostiles 2 | . . 2 Parts Melted 3 | . . 3 Heat Transferred 864 | . . 864 Parts Sabotaged . | . . . Parts Stolen . | . . . Parts Stripped . | . . . Power Chain Reactions . | . . . Alert | -11 -10 -10 ------- Run | Yrd Mat Sub Maximum Alert Level . | . . . Low Security (%) 100 | 100 100 . Level 1 . | . . . Level 2 . | . . . Level 3 . | . . . Level 4 . | . . . Level 5 . | . . . High Security . | . . . Max Security . | . . . Peak Influence 160 | 10 160 . Initial . | . . . Average 42 | 1 52 . Influence Increases 280 | 15 245 20 Destroy 0b10 Robot/C 140 | . 120 20 Destroy 0b10 Robot/NC 15 | 15 . . Destroy Leader 20 | . 20 . Successful Hack 15 | . 15 . Disable Machine 45 | . 45 . Destroy Structure 45 | . 45 . Influence Decreases 280 | 15 148 117 Entered New Map 47 | . . 47 Time Decay 223 | 15 138 70 Lost Part 10 | . 10 . Squads Dispatched . | . . . Investigation . | . . . Extermination . | . . . Reinforcement . | . . . Assault . | . . . Garrison . | . . . Intercept . | . . . Searches Triggered . | . . . Construction Impeded . | . . . Haulers Reinforced . | . . . Active Scanning Responses . | . . . Cargo Convoy Interrupts . | . . . Stealth | -11 -10 -10 --------- Run | Yrd Mat Sub Distress Signals . | . . . Communications Jammed . | . . . Distress Signals . | . . . Times Spotted 26 | . 8 18 Peak Tracking Total 7 | . 4 7 Tactical Retreats . | . . . Traps | -11 -10 -10 ------- Run | Yrd Mat Sub Traps Triggered 1 | . . 1 Indirectly . | . . . Trap Hack Attempts . | . . . Triggered . | . . . Disarmed . | . . . Reprogrammed . | . . . Reused . | . . . Traps Extracted . | . . . Installed . | . . . Triggered . | . . . Machines | -11 -10 -10 ---------- Run | Yrd Mat Sub Machines Disabled 3 | . 3 . Max in Single Turn 2 | . 2 . Machines Repaired . | . . . Machines Dismantled . | . . . Machines Sabotaged . | . . . Overloaded Fab Kills . | . . . Hacking | -11 -10 -10 --------- Run | Yrd Mat Sub Machines Accessed 3 | . 2 1 Terminals 2 | . 2 . Fabricators . | . . . Repair Stations . | . . . Recycling Units . | . . . Scanalyzers . | . . . Garrison Access . | . . . Total Hacks 11 | . 7 4 Successful 8 | . 4 4 Failed 3 | . 3 . Catastrophic . | . . . Database Lockouts . | . . . Manual 4 | . 4 . Terminals 7 | . 7 . Fabricators . | . . . Repair Stations . | . . . Recycling Units . | . . . Scanalyzers . | . . . Garrison Access . | . . . Terminal Hacks 7 | . 3 4 Record 4 | . . 4 Level Access Points 1 | . 1 . Emergency Access Points 1 | . 1 . Hauler Manifests 1 | . 1 . Fabricator Hacks . | . . . Repair Station Hacks . | . . . Recycling Unit Hacks . | . . . Scanalyzer . | . . . Garrison Access Hacks . | . . . Unauthorized Hacks 1 | . 1 . Terminals 1 | . 1 . Assimilate 1 | . 1 . Fabricators . | . . . Repair Stations . | . . . Recycling Units . | . . . Scanalyzers . | . . . Garrison Access . | . . . Data Cores Recovered . | . . . Used . | . . . Hacking Detections 2 | . 2 . Full Trace Events . | . . . Feedback Events . | . . . Feedback Blocked . | . . . Robot Schematics Acquired . | . . . Robots Built . | . . . Authchips . | . . . Time . | . . . Total Robot Build Rating . | . . . Part Schematics Acquired . | . . . Parts Built . | . . . Authchips . | . . . Time . | . . . Total Part Build Rating . | . . . Part Studies Acquired . | . . . Parts Repaired . | . . . Time . | . . . Parts Recycled . | . . . Recycled Matter . | . . . Retrieved Matter . | . . . Retrieved Components . | . . . Parts Scanalyzed . | . . . Part Schematics Acquired . | . . . Parts Damaged . | . . . Bothacking | -11 -10 -10 ------------ Run | Yrd Mat Sub Used RIF Installer . | . . . Robots Hacked . | . . . Non-combat . | . . . Combat . | . . . Robot Hacks Applied . | . . . Relay Couplers Released . | . . . Fabnet Peak Effective % . | . . . Robots Rewired . | . . . Allies Hacked . | . . . Hacks Repelled . | . . . Allies | -11 -10 -10 -------- Run | Yrd Mat Sub Total Allies . | . . . Largest Group . | . . . Highest-Rated Group . | . . . Highest-Rated Ally . | . . . Total Orders . | . . . Ally Attacks . | . . . Total Damage . | . . . Kills . | . . . Allies Corrupted . | . . . Allies Melted . | . . . Intel | -11 -10 -10 ------- Run | Yrd Mat Sub Active Infowar (turns) 987 | 34 470 483 Terrain 261 | . . 261 Seismic 726 | 34 470 222 Robot Analysis Total . | . . . Derelict Logs Recovered 1 | . . 1 Drone Launches . | . . . Drone Recoveries . | . . . Exploration | -11 -10 -10 ------------- Run | Yrd Mat Sub Turns Passed 3347 | 113 470 2764 Spaces Moved 1488 | 52 265 1171 Core 13 | 11 2 . Treads 1327 | . 156 1171 Legs 148 | 41 107 . Wheels . | . . . Hover . | . . . Flight . | . . . Fastest Speed 50 | 50 120 160 Average Speed 194 | 110 144 208 Slowest Speed 320 | 120 250 320 Overloaded Moves . | . . . Propulsion Burnouts . | . . . Robots Hopped . | . . . Potential Cave-ins . | . . . Cave-ins Triggered . | . . . Exploration Rate (%) 36 | 5 48 55 Regions Visited 2 Branch Regions 1 Pre-discovered Areas 2 | . . 2 Known Exits Taken . | . . . Unknown Exits Taken 2 | 1 1 . Scrap Searched 3 | . . 3 Spaces Dug . | . . . Terrain Destroyed 80 | . 49 31 Melee . | . . . Projectile . | . . . AOE 80 | . 49 31 Terrain Rammed . | . . . Walls Destroyed . | . . . Machines Disabled . | . . . Actions | -11 -10 -10 --------- Run | Yrd Mat Sub Total 1734 | 85 312 1337 Wait 55 | 11 5 39 Move 1486 | 51 264 1171 Hop . | . . . Pick Up 31 | 6 7 18 Fast Attach 9 | 5 1 3 Attach 14 | 2 3 9 Detach 5 | . 1 4 Swap 14 | . 4 10 Drop 20 | . 5 15 Fire 99 | 10 21 68 Melee . | . . . Ram . | . . . Kick 1 | . 1 . Crush . | . . . Escape Stasis . | . . . Rewire . | . . . Trap . | . . . Miscellaneous . | . . . Route ------- -11/Scrapyard -10/Materials (discovered 5 exits: Mat x3 / [*Min] / *Sub) -10/Subcaves (discovered 2 exits: [*Mat] / Rec) History --------- Turn | Location | Event 17 | -11/Scrapyard | Discovered new exit (range 15) 114 | -11/Scrapyard | Entered Materials 324 | -10/Materials | Build established: Mutant 409 | -10/Materials | Discovered new exit (range 9) 495 | -10/Materials | Identified exit to Materials 522 | -10/Materials | Discovered new exit (range 16) 584 | -10/Materials | Entered Subcaves 611 | -10/Subcaves | Learned location of Mines (-8) 734 | -10/Subcaves | Ambushed by swarm of Subdwellers 735 | -10/Subcaves | Ambushed by Subdwellers from Twisted Machinery 789 | -10/Subcaves | Lost 4 allies 1082 | -10/Subcaves | Disturbed a concealed Subdweller 1369 | -10/Subcaves | Shifting Twisted Machinery released Flamer 1503 | -10/Subcaves | Shifting Twisted Machinery released Sub. Beam Cannon 1581 | -10/Subcaves | Ambushed by Subdweller buried in earth 1584 | -10/Subcaves | Core integrity fell below 50% 1801 | -10/Subcaves | Shifting Twisted Machinery released Sub. Laser 1871 | -10/Subcaves | Shifting Twisted Machinery released Sub. Beam Cannon 2013 | -10/Subcaves | Visited Clippyterm 2020 | -10/Subcaves | Identified exit to Recycling 2020 | -10/Subcaves | Learned location of Extension (-5) 2861 | -10/Subcaves | Shifting Twisted Machinery released Flamer 3152 | -10/Subcaves | Discovered new exit (range 7) 3343 | -10/Subcaves | Core integrity fell below 20% 3348 | -10/Subcaves | Destroyed by 9N-S5W(R) with Subdweller Machine Gun Last Messages --------------- 02321_ Connecting with Clippyterm... 02822_ Dropped Broken Sub. Power Source. 02823_ Acquired Lgt. Ion Engine. 02824_ Acquired 25 matter. Flamer falls loose from the Twisted Machinery. 02877_ Acquired 39 matter. 02978_ Triggered Piercing Trap. 02978_ Spikes shoot up from the floor. 02978_ Critical hit (Impale). 03014_ Subatomizers dissect the Disposable Heat Sink. 03152_ Acquired 19 matter. 03152_ EXIT=FOUND 03169_ Acquired 20 matter. 03181_ Acquired 18 matter. 03297_ Critical hit (Meltdown: +260). 03307_ Lgt. Ion Engine destroyed. 03307_ Destroyed Lgt. Ion Engine. 03314_ X8-2N6(R) destroyed. 03316_ P6-HA2(R) destroyed. Map ----- +----------------------------------------------------+ | ?????????????????????????????????????????????????? | | ?????????????????????????????????????????????????? | | ?????????????????????????????????????????????????? | | ?????????????????????????????????????????????????? | | ?????????????????????????????????????????????????? | | ?????????????????????????????????????????????????? | | ?????????????????????????????????????????????????? | | ?????????????????????????????????????????????????? | | ?????????????????????????????????????????????????? | | ?????????????????????????????????????????????????? | | ???????????????????????????????????????????????##? | | ???????????????????????????????????????????????# # | | ????????????????????????????????????????????### | | ???????????????????????????????????????????# ?? | | ???????????????????????????????????? ???## ??? | | ??????????????????????????????????## ???# ??? | | ???????????????????????????????????"" #?## ???? | | ?????????????????????????????????###"" ## ????? | | ?????????????????????????????????# "## #????? | | ??????????????????????????????##?# ###??? | | ????????????????????????????## #??# ##?? | | ?????????????###?############ #???# ##? | | ????????????## ## # ## #?????# ## | | ????????????# ##????# | | ??????????### % ###### | | ??????????# "### # @ R ## | | ?????????#"""" ""#?## #### #### | | ?????????## " "" ##### ##?# #??# # # | | ??????????###""" "## #?# #### ## | | ????????????#### ## ##?# # "## | | ??????????????#" ### ###" " | | ?????# " " ### ##?# " | | ???"" ### ######??# ## | | ??# " #?## ##???????##### | | ????## " ! #??## ##????????????# | | ?????#### ###???#####?????????????? | | ????????# ## ##???????????????????????? | | ????????# %] ## ##????????????????????????? | | ????????##"" ## #?????????????????????????? | | ?????????#" "##### ?????????????????????????? | | ?????????# ""????## ????????????????????????? | | ?????????""# """#??????###???????????????????????? | | ?????????#######?????????????????????????????????? | | ?????????????????????????????????????????????????? | | ?????????????????????????????????????????????????? | | ?????????????????????????????????????????????????? | | ?????????????????????????????????????????????????? | | ?????????????????????????????????????????????????? | | ?????????????????????????????????????????????????? | | ?????????????????????????????????????????????????? | +----------------------------------------------------+ Best States ------------- Heat Dissipation 25 Energy Generation 15 Energy Capacity 200 Matter Stores 300 Matter Capacity 300 Sight Range 16 Terrain Scan Range 16 Terrain Scan Density 10 Armor Coverage 100 Evasion (%) 55 Recoil Reduction 2 Item Schematics ----------------- None Robot Schematics ------------------ None Fabricated ------------ Nothing Repaired ---------- Nothing Studied --------- None Alien Tech Used ----------------- None Achievements -------------- Do Not Disturb Challenges ------------ None Game ------ Seed ThrowingCompositeCloak Manual? 0 Play Time 00:26:59 Cumulative 203.8 hours Start 2025.12.05 @ 15:10:50 End 2025.12.06 @ 00:31:16 Sessions 3 Manual Loads 0 Difficulty Rogue Special Mode None Game No. 84 Rogue 21 Adventurer 63 Explorer 0 Win Type - Total 8 Types 4/2/0/2/0/0/0/0/0/0 Lore% 32 Gallery% 58 Achievement% 35 Wizard Run 0 Options --------- Layout 1 ASCII 0 Keyboard 0 Movement Mouse Keybinds 0 Fullscreen 1 Font 24/Smallcaps Map View 50x35 Zoom Use 0% Tactical HUD 1 Map Filters NONE Filters NONE Steam 1 RUN: c8be10e1-1466-410b-9601-2493d3b64829